bitfinex/quotes_SOLUSD_20241107
["timestamp","ask_amount","ask_price","bid_price","bid_amount"]
[1730976622091,7.97593219,187.28,187.24,0.42016081]
[1730976622294,7.97593219,187.27,187.24,0.42016081]
[1730976622713,7.97593219,187.29,187.24,0.42016081]
[1730976623916,7.97593219,187.28,187.24,0.42016081]
[1730976625614,7.97593219,187.27,187.24,0.42016081]
[1730976626603,7.97593219,187.28,187.24,0.42016081]
[1730976628690,27.97593219,187.3,187.24,0.42016081]
[1730976629014,7.97593219,187.29,187.24,0.42016081]
[1730976629594,7.97593219,187.28,187.24,0.42016081]
[1730976631615,7.97593219,187.29,187.24,0.42016081]
[1730976632419,7.97593219,187.28,187.24,0.42016081]
[1730976632589,7.97593219,187.29,187.24,0.42016081]
[1730976635516,7.97593219,187.28,187.24,0.42016081]
[1730976640712,20.0,187.3,187.24,0.42016081]
[1730976640900,7.97593219,187.32,187.26,7.97593219]
[1730976641099,7.97593219,187.32,187.2,31.90372876]
[1730976641100,7.97593219,187.33,187.27,7.97593219]
[1730976642292,7.97593219,187.32,187.26,7.97593219]
[1730976642822,7.97593219,187.3,187.24,7.97593219]
[1730976643808,7.97593219,187.31,187.25,7.97593219]
[1730976644625,7.97593219,187.32,187.26,7.97593219]
[1730976645926,7.97593219,187.33,187.26,7.97593219]
[1730976648921,0.5723908,187.34,187.26,7.97593219]
[1730976649229,7.97593219,187.32,187.26,7.97593219]
[1730976649400,0.5723908,187.34,187.26,7.97593219]
[1730976649601,7.97593219,187.32,187.26,7.97593219]
[1730976649799,0.5723908,187.34,187.25,14.15613219]
[1730976650015,7.97593219,187.32,187.26,7.97593219]
[1730976657221,7.97593219,187.32,187.25,22.13206438]
[1730976657803,0.5723908,187.34,187.2,37.24372876]
[1730976657804,7.97593219,187.3,187.21,20.0]
[1730976658121,7.97593219,187.28,187.2,16.0578]
[1730976658327,7.97593219,187.28,187.22,7.97593219]
[1730976658707,7.97593219,187.28,187.23,0.12015981]
[1730976659726,7.97593219,187.3,187.24,7.97593219]
[1730976660515,7.97593219,187.31,187.24,7.97593219]
[1730976660716,20.0,187.3,187.25,7.97593219]
[1730976660914,20.0,187.31,187.26,7.97593219]
[1730976661620,20.0,187.32,187.26,7.97593219]
[1730976662408,7.97593219,187.32,187.26,7.97593219]
[1730976662621,20.0,187.31,187.26,7.97593219]
[1730976664420,7.97593219,187.32,187.26,7.97593219]
[1730976665027,20.5723908,187.34,187.28,7.97593219]
[1730976665232,0.5723908,187.34,187.31,7.97593219]
[1730976665407,0.5723908,187.34,187.33,7.97593219]
[1730976667608,0.5723908,187.34,187.33,14.51442219]
[1730976668430,0.5723908,187.34,187.33,44.62694436]
[1730976669533,0.5723908,187.34,187.33,14.51442219]
[1730976673009,0.5723908,187.34,187.33,14.634582]
[1730976673333,0.5723908,187.34,187.33,64.74710417]
[1730976673516,0.5723908,187.34,187.33,88.52398817]
[1730976674758,20.0,187.46,187.36,0.12549]
[1730976674961,158.4,187.49,187.43,7.97593219]
[1730976675171,7.97593219,187.49,187.44,7.97593219]
[1730976675346,7.97593219,187.49,187.43,7.97593219]
[1730976676638,7.97593219,187.48,187.42,7.97593219]
[1730976676833,7.97593219,187.47,187.41,7.97593219]
[1730976677042,7.97593219,187.47,187.31,7.43414107]
[1730976677043,23.902374,187.41,187.31,7.43414107]
[1730976677254,6.4915,187.43,187.29,15.9696]
[1730976677255,7.97593219,187.37,187.29,15.9696]
[1730976677536,7.97593219,187.39,187.33,7.97593219]
[1730976677756,6.4915,187.43,187.33,7.97593219]
[1730976677960,20.0,187.42,187.36,7.97593219]
[1730976678152,7.97593219,187.42,187.36,7.97593219]
[1730976678352,7.97593219,187.42,187.29,46.08212217]
[1730976678353,6.4915,187.43,187.37,7.97593219]
[1730976678658,7.97593219,187.44,187.38,7.97593219]
[1730976679366,7.97593219,187.42,187.36,7.97593219]
[1730976679657,7.97593219,187.43,187.37,7.97593219]
[1730976681468,12.42040768,187.43,187.36,12.42040768]
[1730976682066,12.42040768,187.42,187.36,12.42040768]
[1730976682282,12.42040768,187.4,187.34,12.42040768]
[1730976682486,12.42040768,187.39,187.33,12.42040768]
[1730976682659,12.42040768,187.4,187.33,12.42040768]
[1730976683649,12.42040768,187.4,187.34,12.42040768]
[1730976685139,12.42040768,187.41,187.35,12.42040768]
[1730976685350,12.42040768,187.41,187.34,12.42040768]
[1730976686819,12.42040768,187.39,187.33,12.42040768]
[1730976687018,12.42040768,187.38,187.32,12.42040768]
[1730976687327,12.42040768,187.39,187.33,12.42040768]
[1730976687535,12.42040768,187.4,187.34,12.42040768]
[1730976687736,12.42040768,187.41,187.35,12.42040768]
[1730976687931,12.42040768,187.41,187.3,12.42040768]
[1730976687932,12.42040768,187.43,187.37,12.42040768]
[1730976688127,12.42040768,187.44,187.38,12.42040768]
[1730976690046,12.42040768,187.43,187.37,12.42040768]
[1730976691153,12.42040768,187.41,187.35,12.42040768]
[1730976691454,12.42040768,187.42,187.36,12.42040768]
[1730976691625,12.42040768,187.41,187.35,12.42040768]
[1730976691827,12.42040768,187.4,187.34,12.42040768]
[1730976692027,12.42040768,187.39,187.33,12.42040768]
[1730976692927,12.42040768,187.4,187.34,12.42040768]
[1730976695347,12.42040768,187.41,187.35,12.42040768]
[1730976695738,12.42040768,187.39,187.33,12.42040768]
[1730976695943,12.42040768,187.39,187.32,0.12549]
[1730976695944,12.42040768,187.39,187.32,12.54589768]
[1730976696528,12.42040768,187.39,187.33,12.42040768]
[1730976697129,12.42040768,187.41,187.32,0.12549]
[1730976697340,12.42040768,187.41,187.35,12.42040768]
[1730976697535,32.42040768,187.41,187.35,12.42040768]
[1730976700057,12.42040768,187.41,187.35,12.42040768]
[1730976700353,12.42040768,187.42,187.36,12.42040768]
[1730976701337,7.94929824,187.42,187.36,7.94929824]
[1730976701544,7.94929824,187.43,187.36,7.94929824]
[1730976701750,20.0,187.42,187.36,7.94929824]
[1730976701953,27.94929824,187.42,187.36,7.94929824]
[1730976702527,7.94929824,187.41,187.32,0.12549]
[1730976702744,7.94929824,187.4,187.34,7.94929824]
[1730976704336,7.94929824,187.39,187.33,7.94929824]
[1730976706040,7.94929824,187.4,187.33,7.94929824]
[1730976706239,7.94929824,187.4,187.32,0.12549]
[1730976706240,7.94929824,187.4,187.34,7.94929824]
[1730976707458,7.94929824,187.41,187.34,7.94929824]
[1730976707641,20.0,187.4,187.34,7.94929824]
[1730976707845,20.0,187.4,187.32,0.12549]
[1730976708038,7.94929824,187.39,187.32,8.07478824]
[1730976709658,27.94929824,187.4,187.33,7.94929824]
[1730976709850,23.776884,187.39,187.33,7.94929824]
[1730976710157,23.776884,187.39,187.34,7.94929824]
[1730976711066,20.0,187.4,187.35,7.94929824]
[1730976711553,20.0,187.41,187.35,7.94929824]
[1730976711741,20.0,187.42,187.37,7.94929824]
[1730976711946,20.0,187.42,187.39,7.94929824]
[1730976712762,27.94929824,187.44,187.38,7.94929824]
[1730976713545,20.0,187.44,187.39,7.94929824]
[1730976713846,158.4,187.47,187.41,7.94929824]
[1730976713847,7.94929824,187.47,187.41,7.94929824]
[1730976714158,23.776884,187.46,187.41,7.94929824]
[1730976714336,7.94929824,187.46,187.4,7.94929824]
[1730976716555,7.94929824,187.43,187.36,15.4208]
[1730976716767,7.94929824,187.43,187.36,23.37009824]
[1730976716944,7.94929824,187.43,187.37,7.94929824]
[1730976717539,7.94929824,187.41,187.35,7.94929824]
[1730976718064,43.776884,187.45,187.32,24.57338824]
[1730976718065,27.94929824,187.39,187.32,24.57338824]
[1730976718358,20.0,187.39,187.34,7.94929824]
[1730976718864,51.72618224,187.4,187.34,7.94929824]
[1730976719867,7.94929824,187.42,187.35,7.94929824]
[1730976720162,20.0,187.41,187.35,7.94929824]
[1730976720954,20.0,187.42,187.37,7.94929824]
[1730976721364,20.0,187.42,187.37,12.42011743]
[1730976722154,32.42011743,187.42,187.36,12.42011743]
[1730976724665,32.42011743,187.43,187.37,12.42011743]
[1730976726567,12.42011743,187.42,187.36,12.42011743]
[1730976728059,20.0,187.43,187.38,12.42011743]
[1730976729067,20.0,187.43,187.37,12.42011743]
[1730976730654,32.42011743,187.43,187.37,12.42011743]
[1730976730876,12.42011743,187.42,187.36,12.42011743]
[1730976731552,32.42011743,187.43,187.37,12.42011743]
[1730976732062,32.42011743,187.43,187.36,12.42011743]
[1730976732063,12.42011743,187.42,187.36,12.42011743]
[1730976733352,20.0,187.43,187.37,12.42011743]
[1730976733672,12.42011743,187.44,187.38,12.42011743]
[1730976734475,36.19700143,187.46,187.39,12.42011743]
[1730976734645,20.0,187.45,187.39,12.42011743]
[1730976734845,32.42011743,187.45,187.39,12.42011743]
[1730976735075,20.0,187.45,187.39,12.42011743]
[1730976735252,20.0,187.46,187.41,12.42011743]
[1730976735860,20.0,187.46,187.4,12.42011743]
[1730976737862,20.0,187.46,187.41,12.42011743]
[1730976738068,12.42011743,187.49,187.43,12.42011743]
[1730976738269,12.42011743,187.5,187.44,12.42011743]
[1730976739272,32.42011743,187.49,187.43,12.42011743]
[1730976739465,12.42011743,187.48,187.42,12.42011743]
[1730976740578,12.42011743,187.46,187.4,12.42011743]
[1730976742355,12.42011743,187.47,187.41,12.42011743]
[1730976743270,12.42011743,187.47,187.39,15.5711]
[1730976743466,7.94536987,187.47,187.41,7.94536987]
[1730976744174,7.94536987,187.46,187.4,7.94536987]
[1730976744380,7.94536987,187.45,187.39,23.51646987]
[1730976744689,20.0,187.49,187.39,23.51646987]
[1730976744690,7.94536987,187.44,187.39,15.5711]
[1730976744977,7.94536987,187.44,187.38,7.94536987]
[1730976745172,7.94536987,187.43,187.37,7.94536987]
[1730976746470,21.46215764,187.49,187.35,15.7976]
[1730976746471,7.94536987,187.42,187.36,7.94536987]
[1730976746661,7.94536987,187.43,187.37,7.94536987]
[1730976747971,7.94536987,187.44,187.38,7.94536987]
[1730976748157,7.94536987,187.45,187.39,7.94536987]
[1730976748858,7.94536987,187.46,187.39,7.94536987]
[1730976751172,7.94536987,187.45,187.39,7.94536987]
[1730976751379,7.94536987,187.45,187.35,15.7976]
[1730976751380,7.94536987,187.46,187.4,7.94536987]
[1730976754280,23.776884,187.49,187.41,7.94536987]
[1730976754486,27.94536987,187.48,187.42,7.94536987]
[1730976754662,20.0,187.48,187.43,7.94536987]
[1730976755373,7.94536987,187.49,187.43,7.94536987]
[1730976757955,7.94536987,187.48,187.43,7.94536987]
[1730976758760,7.94536987,187.48,187.42,7.94536987]
[1730976760679,43.776884,187.51,187.42,7.94536987]
[1730976760881,7.94536987,187.49,187.43,7.94536987]
[1730976761372,7.94536987,187.48,187.42,7.94536987]
[1730976762381,43.776884,187.51,187.41,24.50506987]
[1730976762382,7.94536987,187.47,187.41,24.50506987]
[1730976762562,7.94536987,187.47,187.41,16.5597]
[1730976767178,23.776884,187.46,187.35,15.6617]
[1730976767379,7.94536987,187.44,187.38,7.94536987]
[1730976767592,7.94536987,187.43,187.37,7.94536987]
[1730976767773,7.94536987,187.44,187.37,7.94536987]
[1730976767968,43.776884,187.49,187.39,7.94536987]
[1730976768179,7.94536987,187.45,187.39,7.94536987]
[1730976768509,7.94536987,187.44,187.38,7.94536987]
[1730976770989,7.94536987,187.45,187.38,7.94536987]
[1730976771183,7.94536987,187.44,187.37,7.94536987]
[1730976771378,7.94536987,187.43,187.37,7.94536987]
[1730976771787,7.94536987,187.43,187.36,7.94536987]
[1730976772098,7.94536987,187.37,187.32,0.12549]
[1730976772293,7.94536987,187.39,187.33,7.94536987]
[1730976772469,7.94536987,187.4,187.34,7.94536987]
[1730976772796,7.94536987,187.4,187.33,7.94536987]
[1730976773501,7.94536987,187.39,187.33,7.94536987]
[1730976774308,158.4,187.44,187.32,0.12549]
[1730976774309,7.94536987,187.4,187.34,7.94536987]
[1730976774677,43.776884,187.43,187.34,7.94536987]
[1730976774876,20.0,187.4,187.35,7.94536987]
[1730976775790,7.94536987,187.42,187.35,7.94536987]
[1730976776215,7.94536987,187.42,187.36,7.94536987]
[1730976777899,7.94536987,187.41,187.35,7.94536987]
[1730976778398,7.94536987,187.4,187.34,7.94536987]
[1730976779402,7.94536987,187.41,187.34,7.94536987]
[1730976779980,27.94536987,187.4,187.34,7.94536987]
[1730976780184,20.0,187.4,187.34,7.94536987]
[1730976780509,20.0,187.4,187.32,0.12549]
[1730976780510,20.0,187.4,187.35,7.94536987]
[1730976780803,7.94536987,187.41,187.35,7.94536987]
[1730976781586,20.0,187.41,187.37,7.94536987]
[1730976782106,20.0,187.42,187.37,7.94536987]
[1730976783010,7.94536987,187.43,187.37,7.94536987]
[1730976783194,7.94536987,187.43,187.36,7.94536987]
[1730976783903,7.94536987,187.43,187.37,7.94536987]
[1730976786609,7.94536987,187.42,187.37,7.94536987]
[1730976786813,7.94536987,187.42,187.36,7.94536987]
[1730976788105,7.94536987,187.39,187.32,0.12549]
[1730976788288,7.94536987,187.4,187.34,7.94536987]
[1730976790083,7.94536987,187.41,187.35,7.94536987]
[1730976792418,20.0,187.41,187.35,7.94536987]
[1730976793304,20.0,187.41,187.36,7.94536987]
[1730976793511,20.0,187.41,187.35,7.94536987]
[1730976796220,7.94536987,187.4,187.33,7.94536987]
[1730976797095,7.94536987,187.4,187.34,7.94536987]
[1730976797298,7.94536987,187.41,187.35,7.94536987]
[1730976798732,7.94536987,187.41,187.34,7.94536987]
[1730976803220,7.94536987,187.42,187.35,7.94536987]
[1730976803414,20.0,187.41,187.36,7.94536987]
[1730976804119,43.776884,187.42,187.36,7.94536987]
[1730976804815,23.776884,187.45,187.38,7.94536987]
[1730976805023,31.72225387,187.45,187.38,7.94536987]
[1730976805198,21.9041,187.49,187.41,7.94536987]
[1730976805199,7.94536987,187.47,187.41,7.94536987]
[1730976806251,7.94536987,187.46,187.41,7.94536987]
[1730976806401,7.94536987,187.46,187.4,7.94536987]
[1730976807402,7.94536987,187.45,187.39,7.94536987]
[1730976808701,21.9041,187.49,187.38,7.94536987]
[1730976808702,7.94536987,187.44,187.38,7.94536987]
[1730976809113,7.94536987,187.42,187.36,23.07356987]
[1730976810798,7.94536987,187.44,187.38,7.94536987]
[1730976814128,7.94536987,187.45,187.39,7.94536987]
[1730976816235,7.94536987,187.45,187.38,7.94536987]
[1730976818909,7.94536987,187.44,187.38,7.94536987]
[1730976819103,7.94536987,187.43,187.36,23.07356987]
[1730976823632,20.0,187.43,187.38,7.94536987]
[1730976823841,7.94536987,187.45,187.39,7.94536987]
[1730976825020,7.94536987,187.46,187.39,7.94536987]
[1730976825524,7.94536987,187.46,187.4,7.94536987]
[1730976825715,7.94536987,187.46,187.36,15.1282]
[1730976825716,7.94536987,187.46,187.39,7.94536987]
[1730976826529,7.94536987,187.45,187.38,7.94536987]
[1730976830726,7.94536987,187.45,187.39,7.94536987]
[1730976832332,7.94536987,187.45,187.38,7.94536987]
[1730976834418,7.94536987,187.43,187.37,7.94536987]
[1730976834912,7.94536987,187.45,187.38,7.94536987]
[1730976835419,7.94536987,187.44,187.37,7.94536987]
[1730976837035,7.94536987,187.43,187.36,23.07356987]
[1730976837332,7.94536987,187.43,187.36,15.1282]
[1730976837537,7.94536987,187.44,187.37,7.94536987]
[1730976837939,7.94536987,187.42,187.35,7.94536987]
[1730976838835,7.94536987,187.42,187.36,7.94536987]
[1730976839517,7.94536987,187.43,187.36,7.94536987]
[1730976839738,7.94536987,187.44,187.37,7.94536987]
[1730976839917,20.0,187.43,187.37,7.94536987]
[1730976840332,27.94536987,187.43,187.36,7.94536987]
[1730976842235,27.94536987,187.43,187.37,5.17227281]
[1730976842424,27.94536987,187.43,187.36,7.94536987]
[1730976843329,20.0,187.43,187.37,7.94536987]
[1730976843752,27.94536987,187.43,187.36,7.94536987]
[1730976843932,31.72225387,187.42,187.32,0.12549]
[1730976844115,31.72225387,187.42,187.35,7.94536987]
[1730976844430,23.776884,187.42,187.36,7.94536987]
[1730976845224,20.0,187.43,187.37,7.94536987]
[1730976845423,20.0,187.43,187.38,7.94536987]
[1730976846731,20.0,187.43,187.37,7.94536987]
[1730976847939,7.94536987,187.43,187.36,7.94536987]
[1730976848128,23.902374,187.46,187.39,7.94536987]
[1730976848442,23.902374,187.46,187.32,0.12549]
[1730976848443,7.94536987,187.42,187.32,0.12549]
[1730976848619,7.94536987,187.41,187.35,7.94536987]
[1730976849321,7.94536987,187.41,187.32,0.12549]
[1730976849628,7.94536987,187.41,187.35,7.94536987]
[1730976849828,7.94536987,187.42,187.35,7.94536987]
[1730976851521,7.94536987,187.42,187.36,7.94536987]
[1730976851716,7.94536987,187.43,187.37,7.94536987]
[1730976852122,158.52549,187.46,187.37,7.94536987]
[1730976852123,20.0,187.45,187.37,7.94536987]
[1730976852322,27.94536987,187.44,187.43,6.66105912]
[1730976853558,51.72225387,187.44,187.43,6.66105912]
[1730976854043,20.0,187.44,187.43,6.66105912]
[1730976854425,27.94536987,187.44,187.43,6.66105912]
[1730976856547,51.72225387,187.44,187.43,6.66105912]
[1730976857542,20.0,187.43,187.42,6.66105912]
[1730976857734,27.94536987,187.43,187.42,6.66105912]
[1730976857934,27.94536987,187.43,187.36,7.94536987]
[1730976858945,7.94536987,187.41,187.35,7.94536987]
[1730976859133,7.94536987,187.41,187.32,0.12549]
[1730976859333,7.94536987,187.4,187.33,7.94536987]
[1730976859534,7.94536987,187.41,187.35,7.94536987]
[1730976860340,7.94536987,187.41,187.32,0.12549]
[1730976860341,7.94536987,187.41,187.34,7.94536987]
[1730976862052,7.94536987,187.41,187.35,7.94536987]
[1730976862251,7.94536987,187.42,187.35,7.94536987]
[1730976863331,23.776884,187.42,187.36,7.94536987]
[1730976863537,20.0,187.47,187.37,7.94536987]
[1730976863832,20.0,187.43,187.37,7.94536987]
[1730976864446,7.94536987,187.45,187.38,7.94536987]
[1730976864749,23.776884,187.44,187.43,6.66341117]
[1730976865436,31.72225387,187.44,187.43,6.66341117]
[1730976865637,51.72225387,187.44,187.43,6.66341117]
[1730976865845,51.72225387,187.44,187.42,6.66341117]
[1730976866031,7.94536987,187.43,187.42,6.66341117]
[1730976866442,7.94536987,187.43,187.36,7.94536987]
[1730976867238,7.94536987,187.43,187.42,6.6636387]
[1730976867871,7.94536987,187.43,187.37,7.94536987]
[1730976868027,7.94536987,187.4,187.33,7.94536987]
[1730976868348,7.94536987,187.41,187.34,7.94536987]
[1730976868549,23.776884,187.41,187.35,7.94536987]
[1730976868941,23.776884,187.41,187.36,7.94536987]
[1730976869445,0.12549,187.43,187.37,7.94536987]
[1730976869446,20.0,187.43,187.37,7.94536987]
[1730976869772,23.776884,187.44,187.38,7.94536987]
[1730976869927,43.776884,187.44,187.43,6.6637142]
[1730976870127,51.72225387,187.44,187.43,6.6637142]
[1730976875355,51.72225387,187.44,187.37,7.94536987]
[1730976875564,7.94536987,187.44,187.38,7.94536987]
[1730976875858,7.94536987,187.45,187.39,7.94536987]
[1730976876048,7.94536987,187.44,187.38,7.94536987]
[1730976876852,7.94536987,187.42,187.37,16.3965]
[1730976877135,7.94536987,187.41,187.37,16.3965]
[1730976877334,7.94536987,187.42,187.37,16.3965]
[1730976878849,27.94536987,187.38,187.32,0.12549]
[1730976879044,7.94536987,187.35,187.32,0.12549]
[1730976879257,1.01542784,187.35,187.32,0.12549]
[1730976879454,7.94536987,187.34,187.32,0.12549]
[1730976879764,51.84774387,187.33,187.32,0.12549]
[1730976882869,51.72225387,187.33,187.32,0.12549]
[1730976894467,43.776884,187.33,187.32,0.12549]
[1730976894672,51.72225387,187.33,187.32,0.12549]
[1730976907892,51.84774387,187.33,187.32,0.12549]
[1730976916694,43.902374,187.33,187.32,0.12549]
[1730976917182,51.84774387,187.33,187.32,0.12549]
[1730976918814,43.902374,187.33,187.32,0.12549]
[1730976919001,51.84774387,187.33,187.32,0.12549]
[1730976919369,51.72225387,187.33,187.32,0.12549]
[1730976919577,158.4,187.37,187.32,0.12549]
[1730976919779,7.94536987,187.34,187.32,0.12549]
[1730976919989,7.94536987,187.33,187.32,0.12549]
[1730976920301,7.94536987,187.34,187.32,0.12549]
[1730976922988,51.72225387,187.36,187.32,0.12549]
[1730976923190,31.72225387,187.36,187.32,0.12549]
[1730976923586,23.776884,187.36,187.32,0.12549]
[1730976923797,7.94536987,187.37,187.32,0.12549]
[1730976924280,20.0,187.36,187.32,0.12549]
[1730976925890,27.94536987,187.36,187.32,0.12549]
[1730976927885,7.94536987,187.37,187.32,0.12549]
[1730976928107,20.0,187.39,187.32,8.07085987]
[1730976928290,7.94536987,187.38,187.32,8.07085987]
[1730976930392,27.94536987,187.39,187.33,7.94536987]
[1730976931386,7.94536987,187.38,187.32,8.07085987]
[1730976933106,7.94536987,187.36,187.32,0.12549]
[1730976933409,7.94536987,187.34,187.32,0.12549]
[1730976934818,7.94536987,187.36,187.32,0.12549]
[1730976934989,20.0,187.35,187.32,0.12549]
[1730976935307,27.94536987,187.35,187.32,0.12549]
[1730976939625,7.94536987,187.36,187.32,0.12549]
[1730976940029,7.94536987,187.35,187.32,0.12549]
[1730976941424,0.12549,187.39,187.32,0.12549]
[1730976941625,7.94536987,187.35,187.32,0.12549]
[1730976941824,0.1,187.38,187.32,0.12549]
[1730976941825,51.84774387,187.33,187.32,0.12549]
[1730976947008,43.902374,187.33,187.32,0.12549]
[1730976947214,51.84774387,187.33,187.32,0.12549]
[1730976947710,51.72225387,187.33,187.32,0.12549]
[1730976948208,27.94536987,187.33,187.32,0.12549]
[1730976949722,51.72225387,187.33,187.32,0.12549]
[1730976949931,51.84774387,187.33,187.32,0.12549]
[1730976963542,51.84774387,187.33,187.32,5.28913425]
[1730976964044,51.72225387,187.33,187.32,5.28913425]
[1730976964340,51.72225387,187.33,187.32,0.12549]
[1730976968033,20.0,187.33,187.32,0.12549]
[1730976968323,7.94536987,187.33,187.32,0.12549]
[1730976968534,7.94536987,187.34,187.32,0.12549]
[1730976968945,7.94536987,187.33,187.32,0.12549]
[1730976969239,0.12549,187.38,187.32,0.12549]
[1730976969442,7.94536987,187.33,187.32,0.12549]
[1730976969743,7.94536987,187.34,187.32,0.12549]
[1730976970823,7.94536987,187.34,187.33,5.16266062]
[1730976974030,158.4,187.4,187.33,5.16266062]
[1730976974325,7.94536987,187.37,187.32,0.12549]
[1730976974718,7.94536987,187.37,187.32,8.07085987]
[1730976975148,0.12549,187.41,187.32,8.07085987]
[1730976975450,7.94536987,187.37,187.32,8.07085987]
[1730976976841,7.94536987,187.38,187.32,14.42435987]
[1730976977031,20.0,187.41,187.34,7.94536987]
[1730976977233,7.94536987,187.4,187.34,7.94536987]
[1730976978126,5.5670409,187.42,187.35,7.94536987]
[1730976978327,7.94536987,187.41,187.35,7.94536987]
[1730976978952,7.94536987,187.4,187.34,7.94536987]
[1730976979354,7.94536987,187.38,187.33,15.2541]
[1730976979539,7.94536987,187.37,187.33,15.2541]
[1730976981630,7.94536987,187.34,187.33,15.2541]
[1730976981850,7.94536987,187.34,187.32,0.12549]
[1730976982156,7.94536987,187.33,187.32,0.12549]
[1730976989252,0.12549,187.39,187.32,0.12549]
[1730976989458,43.902374,187.39,187.32,0.12549]
[1730976989643,7.94536987,187.34,187.32,0.12549]
[1730976990253,7.94536987,187.33,187.32,0.12549]
[1730977003244,43.902374,187.39,187.32,0.12549]
[1730977003445,7.94536987,187.33,187.32,0.12549]
[1730977006456,7.94536987,187.34,187.32,0.12549]
[1730977007160,158.4,187.4,187.32,0.12549]
[1730977007350,7.94536987,187.35,187.32,0.12549]
[1730977007952,7.94536987,187.34,187.32,0.12549]
[1730977011970,7.94536987,187.35,187.32,0.12549]
[1730977014469,31.78147948,187.4,187.32,0.12549]
[1730977014776,7.94536987,187.36,187.32,0.12549]
[1730977015770,6.21059782,187.41,187.32,8.07085987]
[1730977015960,7.94536987,187.38,187.32,8.07085987]
[1730977016161,7.94536987,187.37,187.32,0.12549]
[1730977016392,6.21059782,187.41,187.32,0.12549]
[1730977016581,7.94536987,187.37,187.32,0.12549]
[1730977018471,7.94536987,187.36,187.32,0.12549]
[1730977020361,7.94536987,187.35,187.32,0.12549]
[1730977020777,31.78147948,187.4,187.32,0.12549]
[1730977020778,7.94536987,187.34,187.32,0.12549]
[1730977021279,7.94536987,187.35,187.32,0.12549]
[1730977021466,20.0,187.39,187.32,0.12549]
[1730977021776,7.94536987,187.36,187.32,0.12549]
[1730977021950,6.21059782,187.41,187.32,0.12549]
[1730977021951,20.0,187.4,187.32,0.12549]
[1730977022156,7.94536987,187.36,187.32,0.12549]
[1730977022355,5.5670409,187.42,187.33,15.1833]
[1730977022569,7.94536987,187.39,187.33,15.1833]
[1730977022862,7.94536987,187.38,187.33,15.1833]
[1730977023977,5.5670409,187.42,187.33,15.1833]
[1730977023978,7.94536987,187.37,187.33,15.1833]
[1730977024276,7.94536987,187.38,187.33,15.1833]
[1730977024480,5.5670409,187.42,187.33,15.1833]
[1730977024672,7.94536987,187.38,187.33,15.1833]
[1730977025073,5.5670409,187.42,187.33,15.1833]
[1730977025277,7.94536987,187.38,187.33,15.1833]
[1730977029655,5.5670409,187.42,187.33,15.1833]
[1730977029862,7.94536987,187.38,187.33,15.1833]
[1730977032388,7.94536987,187.36,187.33,15.1833]
[1730977033559,7.94536987,187.35,187.32,0.12549]
[1730977033759,7.94536987,187.33,187.32,0.12549]
[1730977034365,7.94536987,187.33,187.32,5.29642864]
[1730977036387,7.94536987,187.34,187.32,5.29642864]
[1730977036577,7.94536987,187.34,187.32,0.12549]
[1730977037088,20.0,187.39,187.32,0.12549]
[1730977037276,7.94536987,187.35,187.32,0.12549]
[1730977037581,20.0,187.4,187.32,0.12549]
[1730977037783,7.94536987,187.35,187.32,0.12549]
[1730977039689,7.94536987,187.37,187.32,0.12549]
[1730977043792,5.5670409,187.42,187.32,0.12549]
[1730977043970,7.94536987,187.38,187.32,8.07085987]
[1730977044290,7.94536987,187.37,187.32,0.12549]
[1730977044679,5.5670409,187.42,187.32,0.12549]
[1730977044891,7.94536987,187.37,187.32,0.12549]
[1730977046790,7.94536987,187.36,187.32,0.12549]
[1730977054402,7.94536987,187.37,187.32,0.12549]
[1730977056168,7.94536987,187.36,187.32,0.12549]
[1730977059705,7.94536987,187.37,187.32,0.12549]
[1730977064583,7.94536987,187.4,187.33,7.94536987]
[1730977065102,7.94536987,187.39,187.32,8.07085987]
[1730977065699,7.94536987,187.39,187.33,7.94536987]
[1730977067007,7.94536987,187.38,187.32,8.07085987]
[1730977069708,7.94536987,187.39,187.33,7.94536987]
[1730977070101,7.94536987,187.37,187.32,0.12549]
[1730977071205,20.0,187.41,187.32,0.12549]
[1730977071392,20.0,187.41,187.32,8.07085987]
[1730977071909,7.94536987,187.38,187.32,8.07085987]
[1730977075214,7.94536987,187.4,187.33,7.94536987]
[1730977076316,7.94536987,187.4,187.32,0.12549]
[1730977076317,5.5670409,187.42,187.32,0.12549]
[1730977076616,7.94536987,187.4,187.35,7.94536987]
[1730977077315,7.94536987,187.39,187.32,0.12549]
[1730977077521,7.94536987,187.38,187.32,8.07085987]
[1730977077897,6.21059782,187.41,187.32,8.07085987]
[1730977078102,7.94536987,187.39,187.33,7.94536987]
[1730977079010,5.5670409,187.42,187.32,0.12549]
[1730977079011,5.5670409,187.42,187.34,7.94536987]